fUST/lending_fUST_20240121
["ID","MTS","AMOUNT","RATE_DAILY","PERIOD"]
[312360153,1705828242722,-500.0,0.00030136,2]
[312360154,1705828242732,-8616.53,0.00030136,2]
[312360155,1705828242741,-500.0,0.00030136,2]
[312360156,1705828242751,-504.10624072,0.00030136,2]
[312360157,1705828242760,-5986.27,0.00030136,2]
[312360158,1705828242769,-500.76303151,0.00030136,2]
[312360159,1705828242779,-500.0,0.00030136,2]
[312360160,1705828242792,-8300.05,0.00030136,2]
[312360161,1705828242804,-432.53006519,0.00030136,2]
[312360162,1705828242814,-500.0,0.00030136,2]
[312360163,1705828242823,-2116.25,0.00030136,2]
[312360164,1705828242834,-217.58022648,0.00030136,2]
[312360165,1705828242843,-500.0,0.00030136,2]
[312360168,1705828242853,-415.03975167,0.00030136,2]
[312360171,1705828242863,-1491.01,0.00030136,2]
[312360173,1705828242873,-500.0,0.00030136,2]
[312360175,1705828242883,-500.0,0.00030136,2]
[312360177,1705828242892,-500.0,0.00030136,2]
[312360178,1705828242901,-500.0,0.00030136,2]
[312360179,1705828242910,-500.0,0.00030136,2]
[312360180,1705828242919,-500.0,0.00030136,2]
[312360181,1705828242928,-1000.0,0.00030136,2]
[312360182,1705828242937,-15166.39,0.00030136,2]
[312360183,1705828242947,-500.0,0.00030136,2]
[312360184,1705828242956,-500.0,0.00030136,2]
[312360185,1705828242965,-500.0,0.00030136,2]
[312360186,1705828242974,-500.0,0.00030136,2]
[312360187,1705828242984,-798.39,0.00030136,2]
[312360188,1705828242993,-500.0,0.00030136,2]
[312360189,1705828243002,-500.0,0.00030136,2]
[312360190,1705828243011,-500.0,0.00030136,2]
[312360191,1705828243020,-271.28757262,0.00030136,2]
[312360192,1705828243029,-500.0,0.00030136,2]
[312360193,1705828243039,-500.0,0.00030136,2]
[312360194,1705828243048,-401.95902,0.00030136,2]
[312360195,1705828243058,-1308.11,0.00030136,2]
[312360196,1705828243067,-1777.45,0.00030136,2]
[312360197,1705828243077,-500.0,0.00030136,2]
[312360198,1705828243086,-676.98,0.00030136,2]
[312360199,1705828243096,-982.01,0.00030136,2]
[312360200,1705828243105,-500.0,0.00030136,2]
[312360201,1705828243114,-500.0,0.00030136,2]
[312360202,1705828243123,-500.0,0.00030136,2]
[312360203,1705828243132,-220.4614793,0.00030136,2]
[312360204,1705828243142,-500.0,0.00030136,2]
[312360205,1705828243151,-2486.4,0.00030136,2]
[312360206,1705828243161,-1553.93,0.00030136,2]
[312360208,1705828243170,-813.09,0.00030136,2]
[312360209,1705828243180,-246.16646405,0.00030136,2]
[312360210,1705828243189,-775.2,0.00030136,2]
[312360211,1705828243198,-805.13,0.00030136,2]
[312360212,1705828243207,-213.03649456,0.00030136,2]
[312360213,1705828243217,-500.0,0.00030136,2]
[312360214,1705828243226,-702.19,0.00030136,2]
[312360215,1705828243235,-520.46940625,0.00030136,2]
[312360216,1705828243245,-500.0,0.00030136,2]
[312360217,1705828243254,-913.25,0.00030136,2]
[312360218,1705828243263,-640.1,0.00030136,2]
[312360219,1705828243272,-357.12428259,0.00030136,2]
[312360221,1705828243281,-1000.0,0.00030136,2]
[312360223,1705828243290,-500.0,0.00030136,2]
[312360225,1705828243299,-500.0,0.00030136,2]
[312360227,1705828243310,-500.0,0.00030136,2]
[312360228,1705828243319,-197.51931801,0.00030136,2]
[312360229,1705828243329,-2053.12,0.00030136,2]
[312360230,1705828243338,-500.0,0.00030136,2]
[312360231,1705828243349,-500.0,0.00030136,2]
[312360232,1705828243358,-500.0,0.00030136,2]
[312360233,1705828243367,-500.0,0.00030136,2]
[312360234,1705828243377,-500.0,0.00030136,2]
[312360235,1705828243389,-511.20407066,0.00030136,2]
[312360236,1705828243400,-500.0,0.00030136,2]
[312360237,1705828243411,-500.0,0.00030136,2]
[312360238,1705828243422,-500.0,0.00030136,2]
[312360239,1705828243431,-154.4105762,0.00030137,2]
[312360240,1705828243440,-153.0,0.00030137,2]
[312360241,1705828243449,-153.0,0.00030137,2]
[312360242,1705828243458,-153.0,0.00030137,2]
[312360243,1705828243467,-199.1433421,0.00030137,2]
[312360244,1705828243476,-153.0,0.00030137,2]
[312360245,1705828243485,-199.1433421,0.00030137,2]
[312360246,1705828243494,-199.1433421,0.00030137,2]
[312360247,1705828243503,-153.0,0.00030137,2]
[312360248,1705828243513,-153.0,0.00030137,2]
[312360249,1705828243522,-153.0,0.00030137,2]
[312360250,1705828243532,-153.0,0.00030137,2]
[312360251,1705828243542,-153.0,0.00030137,2]
[312360252,1705828243551,-153.0,0.00030137,2]
[312360253,1705828243560,-153.0,0.00030137,2]
[312360254,1705828243570,-157.894736,0.00030137,2]
[312360255,1705828243579,-1500.0,0.000304,2]
[312360256,1705828243588,-568.0162719,0.00030408,2]
[312360257,1705828243597,-500.0,0.0003041,2]
[312360258,1705828243607,-488.04280479,0.0003041,2]
[312360259,1705828243616,-500.0,0.0003041,2]
[312360260,1705828243625,-1031.36,0.0003041,2]
[312360261,1705828243635,-500.0,0.0003041,2]
[312360262,1705828243644,-291.13137368,0.0003041,2]
[312360263,1705828243653,-500.0,0.0003041,2]
[312360264,1705828243662,-500.0723576,0.0003041,2]
[312360265,1705828243671,-500.0,0.0003041,2]
[312360266,1705828243680,-500.0,0.0003041,2]
[312360267,1705828243689,-453.82432863,0.0003041,2]
[312360268,1705828243699,-941.35,0.0003041,2]
[312360269,1705828243708,-500.0,0.0003041,2]
[312360270,1705828243719,-500.0,0.0003041,2]
[312360271,1705828243727,-500.0,0.0003041,2]
[312360272,1705828243737,-500.0,0.0003041,2]
[312360273,1705828243747,-503.44840265,0.0003041,2]
[312360274,1705828243757,-500.0,0.0003041,2]
[312360275,1705828243766,-500.0,0.0003041,2]
[312360276,1705828243775,-1020.71,0.0003041,2]
[312360277,1705828243787,-500.0,0.0003041,2]
[312360278,1705828243797,-500.0,0.0003041,2]
[312360279,1705828243808,-270.22224209,0.0003041,2]
[312360280,1705828243817,-500.0,0.0003041,2]
[312360281,1705828243827,-500.0,0.0003041,2]
[312360282,1705828243837,-500.0,0.0003041,2]
[312360283,1705828243846,-500.0,0.0003041,2]
[312360284,1705828243855,-500.0,0.0003041,2]
[312360285,1705828243865,-540.95,0.0003041,2]
[312360286,1705828243875,-672.17,0.0003041,2]
[312360287,1705828243884,-1035.93563138,0.0003041,2]
[312360288,1705828243893,-500.0,0.0003041,2]
[312360289,1705828243902,-577.9,0.0003041,2]
[312360290,1705828243911,-500.0,0.0003041,2]
[312360291,1705828243920,-500.0,0.0003041,2]
[312360292,1705828243929,-500.0,0.0003041,2]
[312360293,1705828243938,-500.0,0.0003041,2]
[312360294,1705828243947,-500.0,0.0003041,2]
[312360295,1705828243956,-500.0,0.0003041,2]
[312360296,1705828243965,-500.0,0.0003041,14]
[312360297,1705828243975,-500.0,0.0003041,2]
[312360298,1705828243984,-500.0,0.0003041,2]
[312360299,1705828243993,-500.0,0.0003041,2]
[312360300,1705828244002,-500.0,0.0003041,2]
[312360301,1705828244011,-608.18,0.0003041,2]
[312360302,1705828244021,-500.0,0.0003041,2]
[312360303,1705828244029,-500.0,0.0003041,2]
[312360304,1705828244039,-601.9,0.0003041,2]
[312360305,1705828244048,-251.86251896,0.0003041,2]
[312360306,1705828244057,-571.94,0.0003041,2]
[312360307,1705828244067,-500.0,0.0003041,2]
[312360308,1705828244076,-563.34,0.0003041,2]
[312360309,1705828244086,-500.0,0.0003041,2]
[312360310,1705828244095,-500.0,0.0003041,2]
[312360311,1705828244104,-500.0,0.0003041,2]
[312360312,1705828244114,-645.0704985,0.0003041,2]
[312360313,1705828244123,-346.71546179,0.0003041,2]
[312360314,1705828244132,-963.4,0.0003041,2]
[312360315,1705828244141,-500.0,0.0003041,2]
[312360316,1705828244150,-500.0,0.0003041,2]
[312360317,1705828244159,-500.0,0.0003041,2]
[312360318,1705828244168,-500.0,0.0003041,2]
[312360319,1705828244178,-1999.47,0.0003041,2]
[312360320,1705828244187,-2719.64,0.0003041,2]
[312360321,1705828244196,-500.0,0.0003041,2]
[312360322,1705828244205,-500.0,0.0003041,2]
[312360323,1705828244214,-585.37,0.0003041,2]
[312360324,1705828244224,-500.0,0.0003041,2]
[312360325,1705828244233,-500.0,0.0003041,2]
[312360326,1705828244243,-674.02,0.0003041,2]
[312360327,1705828244253,-606.58,0.0003041,2]
[312360328,1705828244262,-500.0,0.0003041,2]
[312360329,1705828244271,-500.0,0.0003041,2]
[312360330,1705828244280,-503.30082423,0.0003041,2]
[312360331,1705828244289,-500.0,0.0003041,2]
[312360332,1705828244298,-500.0,0.0003041,2]
[312360333,1705828244307,-1188.66,0.0003041,2]
[312360334,1705828244317,-580.88,0.0003041,2]
[312360335,1705828244326,-500.0,0.0003041,2]
[312360336,1705828244335,-500.0,0.0003041,2]
[312360337,1705828244344,-500.0,0.0003041,2]
[312360338,1705828244353,-500.0,0.0003041,2]
[312360339,1705828244362,-500.0,0.0003041,2]
[312360340,1705828244371,-1395.67,0.0003041,2]
[312360341,1705828244380,-787.52,0.0003041,2]
[312360342,1705828244389,-494.7940667,0.0003041,2]
[312360343,1705828244398,-500.0,0.0003041,2]
[312360344,1705828244407,-500.0,0.0003041,2]
[312360345,1705828244415,-500.0,0.0003041,2]
[312360346,1705828244424,-500.0,0.0003041,2]
[312360347,1705828244433,-500.0,0.0003041,2]
[312360348,1705828244442,-500.0,0.0003041,2]
[312360349,1705828244451,-500.0,0.0003041,2]
[312360350,1705828244459,-500.0,0.0003041,2]
[312360351,1705828244469,-150.0,0.0003041,2]
[312360352,1705828244477,-500.0,0.0003041,2]
[312360353,1705828244486,-1283.99,0.0003041,2]
[312360354,1705828244496,-677.36,0.0003041,2]
[312360355,1705828244505,-592.57,0.0003041,2]
[312360356,1705828244514,-500.0,0.0003041,2]
[312360357,1705828244523,-500.0,0.0003041,2]
[312360358,1705828244533,-500.0,0.0003041,2]
[312360359,1705828244542,-500.0,0.0003041,2]
[312360360,1705828244550,-500.0,0.0003041,2]
[312360361,1705828244561,-500.0,0.0003041,2]
[312360362,1705828244570,-500.0,0.0003041,2]
[312360363,1705828244579,-459.96835433,0.0003041,2]
[312360364,1705828244588,-951.13,0.0003041,2]
[312360365,1705828244597,-1219.97,0.0003041,2]
[312360366,1705828244606,-622.51,0.0003041,2]
[312360367,1705828244615,-813.13,0.0003041,2]
[312360368,1705828244624,-8837.89,0.0003041,2]
[312360369,1705828244633,-500.0,0.0003041,2]
[312360370,1705828244644,-26747.16,0.0003041,2]
[312360371,1705828244653,-546.19,0.0003041,2]
[312360372,1705828244662,-1977.49,0.0003041,2]
[312360373,1705828244671,-3146.07,0.0003041,2]
[312360374,1705828244679,-500.0,0.0003041,2]
[312360375,1705828244689,-500.0,0.0003041,2]
[312360376,1705828244698,-459.32992208,0.0003041,2]
[312360377,1705828244707,-6226.39,0.0003041,2]
[312360378,1705828244716,-500.0,0.0003041,2]
[312360379,1705828244725,-500.0,0.0003041,2]
[312360380,1705828244734,-500.0,0.0003041,2]
[312360381,1705828244743,-500.0,0.0003041,2]
[312360382,1705828244752,-500.0,0.0003041,2]
[312360383,1705828244762,-500.0,0.0003041,2]
[312360384,1705828244771,-500.0,0.0003041,2]
[312360385,1705828244780,-500.0,0.0003041,2]
[312360386,1705828244793,-500.0,0.0003041,2]
[312360387,1705828244802,-500.0,0.0003041,2]
[312360388,1705828244811,-500.0,0.0003041,2]
[312360389,1705828244820,-500.0,0.0003041,2]
[312360390,1705828244830,-500.0,0.0003041,2]
[312360391,1705828244839,-2306.94,0.0003041,2]
[312360392,1705828244849,-500.0,0.0003041,2]
[312360393,1705828244858,-1300.84,0.0003041,2]
[312360394,1705828244868,-664.16,0.0003041,2]
[312360395,1705828244879,-498.83019286,0.0003041,2]
[312360396,1705828244888,-500.0,0.0003041,2]
[312360397,1705828244898,-560.41922832,0.0003041,2]
[312360398,1705828244908,-1215.44,0.0003041,2]
[312360399,1705828244917,-500.0,0.0003041,2]
[312360400,1705828244926,-500.0,0.0003041,2]
[312360401,1705828244935,-500.0,0.0003041,2]
[312360402,1705828244944,-500.0,0.0003041,7]
[312360403,1705828244953,-500.0,0.0003041,2]
[312360404,1705828244963,-500.0,0.0003041,2]
[312360405,1705828244972,-500.0,0.0003041,2]
[312360406,1705828244981,-1216.8,0.0003041,2]
[312360407,1705828244990,-8616.53,0.0003041,2]
[312360408,1705828244999,-500.0,0.0003041,2]
[312360409,1705828245008,-5986.27,0.0003041,2]
[312360410,1705828245017,-500.0,0.0003041,2]
[312360411,1705828245026,-8300.05,0.0003041,2]
[312360412,1705828245066,-500.0,0.0003041,2]
[312360413,1705828245075,-2116.25,0.0003041,2]
[312360414,1705828245084,-500.0,0.0003041,2]
[312360415,1705828245094,-1491.01,0.0003041,2]
[312360416,1705828245103,-500.0,0.0003041,2]
[312360417,1705828245113,-500.0,0.0003041,2]
[312360418,1705828245122,-500.0,0.0003041,2]
[312360419,1705828245131,-500.0,0.0003041,2]
[312360420,1705828245140,-221.60056194,0.0003041,2]
[312360421,1705828245149,-500.0,0.0003041,2]
[312360422,1705828245158,-1000.0,0.0003041,2]
[312360423,1705828245167,-15166.39,0.0003041,2]
[312360424,1705828245176,-500.0,0.0003041,2]
[312360425,1705828245185,-500.0,0.0003041,2]
[312360426,1705828245194,-537.13772058,0.0003041,2]
[312360427,1705828245203,-500.0,0.0003041,2]
[312360428,1705828245212,-798.39,0.0003041,2]
[312360429,1705828245221,-261.70582474,0.0003041,2]
[312360430,1705828245230,-500.0,0.0003041,2]
[312360431,1705828245239,-234.44431672,0.0003041,2]
[312360432,1705828245249,-500.0,0.0003041,2]
[312360433,1705828245258,-500.0,0.0003041,2]
[312360434,1705828245266,-1308.11,0.0003041,2]
[312360435,1705828245275,-1777.45,0.0003041,2]
[312360436,1705828245284,-500.0,0.0003041,2]
[312360437,1705828245293,-676.98,0.0003041,2]
[312360438,1705828245302,-982.01,0.0003041,2]
[312360439,1705828245313,-500.0,0.0003041,2]
[312360440,1705828245322,-500.0,0.0003041,2]
[312360441,1705828245331,-500.0,0.0003041,2]
[312360442,1705828245340,-500.0,0.0003041,2]
[312360443,1705828245350,-2486.4,0.0003041,2]
[312360444,1705828245359,-1553.93,0.0003041,2]
[312360445,1705828245368,-813.09,0.0003041,2]
[312360446,1705828245378,-775.2,0.0003041,2]
[312360447,1705828245387,-805.13,0.0003041,2]
[312360448,1705828245396,-335.79645869,0.0003041,2]
[312360449,1705828245404,-702.19,0.0003041,2]
[312360450,1705828245414,-500.0,0.0003041,2]
[312360451,1705828245423,-913.25,0.0003041,2]
[312360452,1705828245432,-640.1,0.0003041,2]
[312360453,1705828245442,-1000.0,0.0003041,2]
[312360454,1705828245451,-500.0,0.0003041,2]
[312360455,1705828245460,-423.25178745,0.0003041,2]
[312360456,1705828245469,-500.0,0.0003041,2]
[312360457,1705828245478,-2053.12,0.0003041,2]
[312360458,1705828245487,-525.72459261,0.0003041,2]
[312360459,1705828245496,-366.00506153,0.0003041,2]
[312360460,1705828245868,-154.88935421,0.00019761,2]
[312360461,1705828245878,-1253.15755419,0.00019771,2]
[312360462,1705828245887,-2883.0996315,0.00019773,2]
[312360567,1705828247202,-1.53235607,0.00019761,2]
[312360569,1705828333573,-1240.78229569,0.00019761,2]
[312360570,1705828333594,-526.64913826,0.00019772,2]
[312360571,1705828333616,-246.33663406,0.00019773,2]
[312360572,1705828333636,-1602.84826341,0.00019773,2]
[312360573,1705828333657,-166.64146166,0.00021748,2]
[312360574,1705828333680,-200.0,0.00021749,7]
[312360576,1705828814029,-154.70605849,0.00023796,4]
[312360577,1705828814056,-323.06508436,0.00023797,2]
[312360578,1705828814082,-154.70605849,0.00023797,2]
[312360579,1705828814108,-1811.41770485,0.00023798,2]
[312360580,1705828814135,-1579.05681645,0.00023798,2]
[312360581,1705828814162,-156.9264307,0.00023798,2]
[312360582,1705828814188,-166.64146166,0.00023798,2]
[312360583,1705828814214,-177.90237609,0.00023798,2]
[312360584,1705828814240,-679.97177576,0.00023799,2]
[312360585,1705828814266,-163.09864906,0.00023799,2]
[312360586,1705828814296,-876.22858684,0.00023799,2]
[312360587,1705828814323,-211.49658438,0.000238,2]
[312360588,1705828814349,-260.71552206,0.000238,7]
[312360589,1705828814376,-18.06689081,0.000238,2]
[312360590,1705829205576,-154.70605849,0.00022145,4]
[312360591,1705829206793,13.29394151,0.00022145,2]
[312360592,1705829270914,-1253.15755419,0.00022029,2]
[312360593,1705829270943,-588.23188464,0.0002203,2]
[312360594,1705829270965,-10758.61056117,0.0002203,2]
[312360596,1705829340312,-679.97177576,0.00019925,2]
[312360597,1705829340335,-1602.84826341,0.00019926,2]
[312360598,1705829340355,-1811.41770485,0.00019927,2]
[312360599,1705829340376,-526.64913826,0.00019928,2]
[312360600,1705829340396,-170.87637718,0.00019929,2]
[312360601,1705829340419,-213.3962609,0.00019929,2]
[312360602,1705829340438,-616.63420581,0.00019929,2]
[312360603,1705829340459,-555.24243185,0.0001993,2]
[312360604,1705829340480,-267.16265354,0.00019931,2]
[312360605,1705829340503,-177.90237609,0.0002,2]
[312360606,1705829340522,-15217.05988375,0.00022027,2]
[312360607,1705829340543,-152.68318406,0.00022034,2]
[312360608,1705829340563,-198.20264287,0.00022145,2]
[312360609,1705829340584,-166.6666673,0.00022146,2]
[312360610,1705829340605,-5133.0080226,0.0002221,2]
[312360611,1705829340851,711.64153599,0.00019925,2]
[312360612,1705829341533,410.63687578,0.00019925,2]
[312360677,1705829438771,-8760.12309796,0.00019921,2]
[312360678,1705829438780,-4813.00638666,0.00019922,2]
[312360679,1705829438789,-7956.19039627,0.00019924,2]
[312360680,1705829438799,-882.87382646,0.00019925,2]
[312360681,1705829438808,-4980.04271134,0.00019925,2]
[312360682,1705829438822,-139966.61555392,0.00019925,2]
[312360683,1705829438831,-154.70605849,0.00023489,4]
[312360684,1705829438841,-163.98813641,0.0002349,2]
[312360685,1705829438850,-1372.84677474,0.0002359,2]
[312360686,1705829438860,-421.18993586,0.000238,2]
[312360687,1705829438869,-13717.4313798,0.00024999,2]
[312360688,1705829438879,-765.94803493,0.00025,2]
[312360689,1705829438889,-1130.76937149,0.00025,2]
[312360690,1705829438898,-170.066696,0.00025112,2]
[312360691,1705829438908,-1811.41770485,0.0002593,2]
[312360692,1705829438917,-679.97177576,0.0002593,2]
[312360693,1705829438926,-177.90237609,0.0002593,2]
[312360694,1705829438936,-555.24243185,0.0002593,2]
[312360695,1705829438945,-1602.84826341,0.00025931,2]
[312360696,1705829438954,-200.0,0.00025932,7]
[312360697,1705829438964,-7574.72,0.00027467,3]
[312360698,1705829438973,-15217.05988375,0.00027476,2]
[312360699,1705829438983,-10907.6,0.00027477,3]
[312360700,1705829438992,-9089.67,0.00027477,3]
[312360701,1705829439001,-2073.50516209,0.00027485,2]
[312360702,1705829439142,-2102.94542064,0.00027485,2]
[312360703,1705829439152,-6534.9,0.00027486,3]
[312360704,1705829439161,-43014.71840125,0.00027487,2]
[312360705,1705829439171,-161.62143051,0.00027496,2]
[312360706,1705829439180,-161.61602018,0.00027496,2]
[312360707,1705829439189,-473.06661371,0.00027496,2]
[312360708,1705829439198,-1570.89243892,0.00027496,2]
[312360709,1705829439210,-425.43471057,0.00027496,2]
[312360710,1705829439219,-226.27415563,0.00027496,2]
[312360711,1705829439228,-191.37607433,0.00027496,2]
[312360712,1705829439238,-1175.36718776,0.00027496,2]
[312360713,1705829439248,-154.70605849,0.00027496,2]
[312360714,1705829439257,-998.72593627,0.00027498,2]
[312360715,1705829439266,-3006.7545095,0.00027924,3]
[312360716,1705829439276,-306.53932035,0.00028,2]
[312360717,1705829439287,-392.78579312,0.00028,2]
[312360718,1705829439298,-350.45254076,0.00028,2]
[312360719,1705829439308,-204.38218542,0.0002831,2]
[312360720,1705829439317,-280.0,0.00028525,15]
[312360721,1705829439327,-162.812824,0.00028767,2]
[312360722,1705829439336,-161.80545,0.00028767,2]
[312360723,1705829439345,-1500.0,0.000294,2]
[312360724,1705829439354,-3741.20865367,0.00029994,2]
[312360725,1705829439363,-1995.94991504,0.00029995,2]
[312360726,1705829439372,-323.47024933,0.00029996,2]
[312360727,1705829439381,-1200.0,0.0003,4]
[312360728,1705829439390,-686.69676861,0.0003,4]
[312360729,1705829439400,-363.84472521,0.0003,3]
[312360730,1705829439409,-150.0,0.0003,4]
[312360731,1705829439418,-15137.0,0.0003,30]
[312360732,1705829439428,-212.0,0.0003,2]
[312360733,1705829439436,-244.10022188,0.0003,4]
[312360734,1705829439446,-154.70605849,0.0003,4]
[312360735,1705829439455,-9915.36380901,0.0003,4]
[312360736,1705829439464,-464.55162265,0.0003,2]
[312360737,1705829439473,-2800.0,0.0003,2]
[312360738,1705829439482,-196.339527,0.00030031,4]
[312360739,1705829439491,-171.21200823,0.00030031,4]
[312360740,1705829439500,-19697.53585665,0.00030032,4]
[312360741,1705829439509,-1245.25042531,0.00030034,4]
[312360742,1705829439518,-154.70605849,0.00030034,4]
[312360743,1705829439527,-156.440844,0.00030034,4]
[312360744,1705829439536,-406.98672392,0.00030034,4]
[312360745,1705829439545,-155.67200944,0.00030034,4]
[312360746,1705829439554,-163.63328853,0.00030034,4]
[312360747,1705829439563,-157.13400969,0.00030034,4]
[312360748,1705829439573,-443.8954874,0.00030034,7]
[312360749,1705829439582,-667.19586272,0.00030034,4]
[312360750,1705829439591,-199.62558619,0.00030034,4]
[312360751,1705829439600,-247.17282345,0.00030034,4]
[312360752,1705829439610,-1258.28045263,0.00030034,4]
[312360753,1705829439619,-663.80781284,0.00030034,4]
[312360754,1705829439628,-528.33981378,0.00030034,4]
[312360755,1705829439639,-653.61556835,0.00030034,4]
[312360756,1705829439648,-422.49965695,0.00030034,4]
[312360757,1705829439659,-404.7830707,0.00030034,4]
[312360758,1705829439670,-644.2750614,0.00030035,4]
[312360759,1705829439679,-189.43956832,0.00030036,3]
[312360760,1705829439689,-255649.79768677,0.00030036,2]
[312360779,1705829441848,-893.69606669,0.00030026,3]
[312360780,1705829441865,-772.36290632,0.00030026,3]
[312360807,1705829443619,-6082.24430589,0.00030036,2]
[312360808,1705829443630,-5573.47377934,0.00030036,2]
[312360809,1705829443676,-721.80899338,0.00030036,2]
[312360810,1705829443686,-785.10646173,0.00030036,2]
[312360823,1705829446941,-7187.56877289,0.00030036,2]
[312360824,1705829446950,-1696.365997,0.00030134,4]
[312360825,1705829446959,-639.1172645,0.00030135,2]
[312360826,1705829446968,-442.11644239,0.00030135,2]
[312360827,1705829446977,-500.0,0.00030135,2]
[312360828,1705829446986,-496.4743012,0.00030135,2]
[312360829,1705829446995,-500.0,0.00030135,2]
[312360830,1705829447004,-0.00726926,0.00030135,2]
[312360831,1705829530082,-154.70605849,0.00027934,4]
[312360832,1705829530103,-154.70605849,0.00027935,2]
[312360833,1705829530123,-132.58788302,0.00027936,2]
[312360835,1705829666218,-639.0,0.00027117,2]
[312360849,1705829796642,-177.90237609,0.00027111,2]
[312360850,1705829796663,-154.70605849,0.00027112,4]
[312360851,1705829796685,-663.39156542,0.00027113,2]
[312360852,1705829865812,-1293.51070224,0.00027117,2]
[312360853,1705829865839,-679.97177576,0.00027118,2]
[312360854,1705829865874,-154.70605849,0.00027119,4]
[312360855,1705829865902,-67.81146351,0.00027924,5]
[312360858,1705830190066,-154.70605849,0.00021999,4]
[312360859,1705830190087,-256.29394151,0.00022,4]
[312360864,1705830419093,-36.90368639,0.00022,4]
[312360865,1705830419122,-154.70605849,0.00027117,4]
[312360866,1705830419149,-121.7690446,0.00027118,2]
[312360867,1705830431080,-1203.30819313,0.00027118,2]
[312360868,1705830431099,-244.88923554,0.00027119,2]
[312360869,1705830431122,-64.59778516,0.00027924,5]
[312360871,1705830443077,-154.70605849,0.00027119,4]
[312360872,1705830443102,-2027.00091867,0.00027924,5]
[312360873,1705830523887,-500.0,0.00030136,14]
[312360874,1705830523925,-500.0,0.0003041,14]
[312360875,1705830523963,-500.0,0.00030684,14]
[312360876,1705830523996,-500.0,0.00030958,14]
[312360877,1705830535159,-450.0,0.000301,10]
[312360878,1705830545935,-500.0,0.00030136,7]
[312360879,1705830545978,-500.0,0.0003041,7]
[312360880,1705830546017,-500.0,0.00030684,7]
[312360881,1705830546051,-340.80976314,0.00030957,7]
[312360882,1705830546075,-500.0,0.00030958,7]
[312360883,1705830546113,443.8954874,0.00030132,7]
[312360884,1705830563732,-154.70605849,0.00027119,4]
[312360885,1705830563756,-3841.13383729,0.00027924,5]
[312360886,1705830563780,-782.52693987,0.00027924,3]
[312360887,1705830563804,-941.15269984,0.00027924,3]
[312360888,1705830563827,-268.33653008,0.00027924,2]
[312360889,1705830563850,-150.0,0.00027936,2]
[312360890,1705830563875,-167.700117,0.00027965,2]
[312360891,1705830563899,-305.51246618,0.00028,2]
[312360892,1705830563921,-162.812824,0.00028767,2]
[312360893,1705830563943,-154.4105762,0.00029315,2]
[312360894,1705830563965,-153.0,0.00029315,2]
[312360895,1705830563988,-199.1433421,0.00029315,2]
[312360896,1705830564013,-153.0,0.00029315,2]
[312360897,1705830564035,-153.0,0.000294,2]
[312360898,1705830564057,-153.0,0.000294,2]
[312360899,1705830564078,-153.0,0.00029589,2]
[312360900,1705830564100,-153.0,0.000296,2]
[312360901,1705830564261,-153.0,0.000296,2]
[312360902,1705830564286,-199.1433421,0.000296,2]
[312360903,1705830564308,-153.0,0.000296,2]
[312360904,1705830564329,-2798.38522363,0.00029831,2]
[312360905,1705830564352,-155.47644952,0.00029881,4]
[312360906,1705830564375,-6124.71057382,0.00029924,2]
[312360907,1705830564397,-154.70605849,0.00029981,2]
[312360908,1705830564419,-583.48261773,0.00029999,2]
[312360909,1705830564443,-252.35536092,0.0003,4]
[312360910,1705830564469,-283.18988707,0.0003,3]
[312360911,1705830564491,-299.65506824,0.0003,2]
[312360912,1705830564512,-157.1809071,0.0003,2]